Cogmind - Beta 10.2 @@@ ROGUE MODE // 2021.11.28 @ 16:29:17 Player: TheSlyFawkes Result: Self-destructed Performance ------------- Evolutions (1) 500 Regions Visited (2) 400 Robots Destroyed (31) 155 Value Destroyed (782) 782 Prototype IDs (0) 0 Alien Tech Used (0) 0 Bonus (0) 0 TOTAL SCORE: 1837 Bonus ------- None Cogmind --------- Core Integrity 295/400 Matter 66/300 Energy 31/100 System Corruption 0% Temperature Cool (0) Movement Core (50) Location -9/Materials Parts ------- > --- POWER (2) -------- (None) > --- PROPULSION (2) --- Hover Unit > --- UTILITY (3) ------ Improved Signal Interpreter Targeting Computer > --- WEAPON (2) ------- Mini Grenade Launcher Mini Grenade Launcher > --- INVENTORY (4) ---- Improved Signal Interpreter Mini Grenade Launcher Mini Grenade Launcher Mini Grenade Launcher Peak State ------------ > --- POWER ------------ Light Ion Engine > --- PROPULSION ------- Hover Unit Hover Unit > --- UTILITY ---------- Improved Signal Interpreter Targeting Computer Shield Generator > --- WEAPON ----------- Mini Grenade Launcher Mini Grenade Launcher > --- INVENTORY -------- Mini Grenade Launcher Mini Grenade Launcher Mini Grenade Launcher [Rating: 12] Favorites ----------- Power Ion Engine Engine Ion Engine Propulsion Light Treads Treads Light Treads Hover Unit Hover Unit Utility Small Storage Unit Device Shield Generator Storage Small Storage Unit Processor Signal Interpreter Weapon Assault Rifle Energy Gun Medium Laser Ballistic Gun Assault Rifle Launcher Mini Grenade Launcher Build | -11 -10 -9 ------- Run | Scr Mat Mat Slots Evolved 2 | . . 2 Power 1 | . . 1 Propulsion . | . . . Utility 1 | . . 1 Weapon . | . . . Parts Attached 26 | 6 14 6 Power 2 | 1 1 . Engine 2 | 1 1 . Core . | . . . Reactor . | . . . Propulsion 7 | 2 3 2 Treads 2 | 2 . . Leg . | . . . Wheel . | . . . Hover 5 | . 3 2 Flight . | . . . Utility 5 | 1 1 3 Device 1 | . . 1 Storage 1 | 1 . . Processor 3 | . 1 2 Hackware . | . . . Protection . | . . . Artifact . | . . . Weapon 12 | 2 9 1 Energy Gun 2 | 1 1 . Energy Cannon . | . . . Ballistic Gun 7 | 1 6 . Ballistic Cannon . | . . . Launcher 3 | . 2 1 Special Weapon . | . . . Impact Weapon . | . . . Slashing Weapon . | . . . Piercing Weapon . | . . . Special Melee Weapon . | . . . Unidentified Prototypes . | . . . Parts Lost 6 | . 1 5 Power 1 | . . 1 Propulsion 3 | . . 3 Utility 1 | . . 1 Weapon 1 | . 1 . Highest Loss Streak 2 | . 1 2 Average Slot Usage (%) 90 | . 92 81 Engine 13 | . 14 7 Treads 14 | . 16 . Hover 12 | . 11 20 Device 1 | . . 8 Storage 11 | . 13 . Processor 9 | . 7 22 Energy Gun 2 | . 2 . Ballistic Gun 21 | . 25 . Launcher 3 | . . 22 Naked Turns . | . . . Heaviest Build 13 | 13 13 7 Greatest Support 40 | 40 40 12 Greatest Overweight (x) 1 | . . 1 Average Overweight (x) . | . . . Largest Inventory Capacity 6 | 6 6 4 Average Capacity 5 | 4 5 4 Most Carried 6 | 4 6 4 Average Carried 4 | 2 4 3 Final Capacity 6 | 6 4 4 Final Carried 4 | 2 4 4 Class Distribution -------------------- 100% | Mutant Dominant Class ---------------- Mutant | -10/Materials Mutant | -9/Materials Resources | -11 -10 -9 ----------- Run | Scr Mat Mat Matter Collected 717 | 241 398 78 Remotely . | . . . Salvage Created 724 | . 543 181 Parts 55 | . 38 17 Haulers Intercepted . | . . . Recyclers Shooed 1 | . 1 . Parts Field Recycled . | . . . Retrieved Matter . | . . . Parts Self-Destructed . | . . . Prevented . | . . . Kills | -11 -10 -9 ------- Run | Scr Mat Mat Combat Hostiles Destroyed 23 | . 13 10 Guns 13 | . 13 . AOE 10 | . . 10 Classes Destroyed 7 | . 4 3 Worker 2 | . . 2 Operator 3 | . 2 1 Watcher 3 | . 2 1 Swarmer 7 | . 3 4 Grunt 13 | . 10 3 Brawler 1 | . . 1 Sentry 2 | . . 2 Best Kill Streak 5 | . 3 5 Combat Bots Only 4 | . 3 4 Max Kills in Single Turn 2 | . 1 2 Gunslinging . | . . . Exploded 2 | . . 2 Melee . | . . . Uniques/NPCs Destroyed . | . . . Combat | -11 -10 -9 -------- Run | Scr Mat Mat Damage Taken 1040 | . 698 342 Core 216 | . 111 105 Absorbed by Shields 65 | . . 65 Core Remaining (%) 77 | 100 55 . Volleys Fired 86 | . 71 15 Largest 2 | . 2 2 Hottest 70 | . 70 60 Shots Fired 166 | . 141 25 Gun 141 | . 141 . Cannon . | . . . Launcher 25 | . . 25 Special . | . . . Kinetic 132 | . 132 . Thermal 9 | . 9 . Explosive 25 | . . 25 Electromagnetic . | . . . Robot Hit Streak 12 | . 9 12 Robot Miss Streak 5 | . 5 2 Penetration Max . | . . . Secondary Targets 2 | . 2 . Max Gunslinging Chain 1 | . 1 . Shots Hit Robots 97 | . 81 16 Core Hits 53 | . 33 20 Critical Hits . | . . . Critical Kills . | . . . Critical Parts Destroyed . | . . . Melee Attacks . | . . . Impact . | . . . Slashing . | . . . Piercing . | . . . Sneak Attacks . | . . . Combat Hostiles . | . . . Follow-up Attacks . | . . . Damage Inflicted 2124 | . 932 1192 Guns 909 | . 909 . Cannons . | . . . Explosions 1192 | . . 1192 Melee . | . . . Ramming 23 | . 23 . Kinetic 836 | . 836 . Thermal 73 | . 73 . Explosive 1192 | . . 1192 Electromagnetic . | . . . Impact . | . . . Slashing . | . . . Piercing . | . . . Highest Corruption . | . . . Average Corruption . | . . . Corruption Purged . | . . . Overload Shots . | . . . Overflow Damage 52 | . . 52 Projectiles . | . . . Explosions 52 | . . 52 Melee . | . . . Knockbacks . | . . . Impact . | . . . Kinetic . | . . . Secondary . | . . . Self-Inflicted Damage 228 | . 11 217 Shots 7 | . . 7 Rammed 1 | . 1 . Targets Rammed 1 | . 1 . Kicked . | . . . Crushed . | . . . Highest Temperature 189 | . 189 1 Average Temperature 35 | . 35 1 Received Heat Transfer 325 | . 303 22 Siege Activations . | . . . Robots Corrupted . | . . . Combat Hostiles . | . . . Parts Fried . | . . . Impact Corruptions . | . . . Robots Melted . | . . . Combat Hostiles . | . . . Parts Melted . | . . . Heat Transferred 222 | . 222 . Parts Sabotaged . | . . . Parts Stolen . | . . . Parts Stripped . | . . . Power Chain Reactions . | . . . Missiles Intercepted . | . . . Alert | -11 -10 -9 ------- Run | Scr Mat Mat Peak Influence 321 | . 145 321 Initial 24 | . . 24 Average 59 | . 47 143 Maximum Alert Level 1 | . . 1 Low Security (%) 96 | 100 100 71 Level 1 3 | . . 28 Level 2 . | . . . Level 3 . | . . . Level 4 . | . . . Level 5 . | . . . High Security . | . . . Max Security . | . . . Squads Dispatched 4 | . 2 2 Investigation 1 | . . 1 Extermination . | . . . Reinforcement 3 | . 2 1 Assault . | . . . Garrison . | . . . Intercept . | . . . Construction Impeded . | . . . Haulers Reinforced . | . . . Stealth | -11 -10 -9 --------- Run | Scr Mat Mat Distress Signals 2 | . 2 . Communications Jammed . | . . . Distress Signals . | . . . Times Spotted 44 | . 28 16 Peak Tracking Total 4 | . 3 4 Tactical Retreats 2 | . 1 1 Traps | -11 -10 -9 ------- Run | Scr Mat Mat Traps Triggered 2 | . 1 1 Indirectly . | . . . Trap Hack Attempts . | . . . Triggered . | . . . Disarmed . | . . . Reprogrammed . | . . . Reused . | . . . Traps Extracted . | . . . Installed . | . . . Triggered . | . . . Machines | -11 -10 -9 ---------- Run | Scr Mat Mat Machines Disabled 2 | . . 2 Max in Single Turn 1 | . . 1 Machines Sabotaged . | . . . Garrisons Compromised . | . . . Overloaded Fab Kills . | . . . Fab Network Shutdowns . | . . . Hacking | -11 -10 -9 --------- Run | Scr Mat Mat Machines Accessed 7 | . 5 2 Terminals 5 | . 4 1 Fabricators . | . . . Repair Stations 1 | . 1 . Recycling Units . | . . . Scanalyzers 1 | . . 1 Garrison Access . | . . . Total Hacks 22 | . 16 6 Successful 15 | . 11 4 Failed 7 | . 5 2 Catastrophic . | . . . Database Lockouts . | . . . Manual . | . . . Terminals 18 | . 14 4 Fabricators . | . . . Repair Stations 2 | . 2 . Recycling Units . | . . . Scanalyzers 2 | . . 2 Garrison Access . | . . . Terminal Hacks 11 | . 9 2 Robot Analysis 1 | . 1 . Branch Access Points 1 | . 1 . Emergency Access Points 2 | . 1 1 Alert Level 1 | . 1 . Unreport Threat 1 | . 1 . Locate Traps 3 | . 2 1 Maintenance Status 1 | . 1 . Registered Components 1 | . 1 . Fabricator Hacks . | . . . Repair Station Hacks 2 | . 2 . Scan Component 1 | . 1 . Repair 1 | . 1 . Recycling Unit Hacks . | . . . Scanalyzer 2 | . . 2 Insert Component 1 | . . 1 Analyze 1 | . . 1 Garrison Access Hacks . | . . . Unauthorized Hacks . | . . . Terminals . | . . . Fabricators . | . . . Repair Stations . | . . . Recycling Units . | . . . Scanalyzers . | . . . Garrison Access . | . . . Data Cores Recovered . | . . . Used . | . . . Hacking Detections 7 | . 5 2 Full Trace Events . | . . . Feedback Events . | . . . Feedback Blocked . | . . . Robot Schematics Acquired . | . . . Robots Built . | . . . Matter . | . . . Time . | . . . Total Robot Build Rating . | . . . Part Schematics Acquired 1 | . . 1 Parts Built . | . . . Matter . | . . . Time . | . . . Total Part Build Rating . | . . . Parts Repaired 1 | . 1 . Time 26 | . 26 . Parts Recycled . | . . . Recycled Matter . | . . . Retrieved Matter . | . . . Retrieved Components . | . . . Parts Scanalyzed 1 | . . 1 Part Schematics Acquired 1 | . . 1 Parts Damaged . | . . . Bothacking | -11 -10 -9 ------------ Run | Scr Mat Mat Used RIF Installer . | . . . Robots Hacked . | . . . Non-combat . | . . . Combat . | . . . Robot Hacks Applied . | . . . Relay Couplers Released . | . . . Robots Rewired . | . . . Allies Hacked . | . . . Hacks Repelled . | . . . Allies | -11 -10 -9 -------- Run | Scr Mat Mat Total Allies . | . . . Largest Group . | . . . Highest-Rated Group . | . . . Highest-Rated Ally . | . . . Total Orders . | . . . Ally Attacks . | . . . Total Damage . | . . . Kills . | . . . Allies Corrupted . | . . . Allies Melted . | . . . Intel | -11 -10 -9 ------- Run | Scr Mat Mat Robot Analysis Total 1 | . 1 . Derelict Logs Recovered . | . . . Drone Launches . | . . . Drone Recoveries . | . . . Exploration | -11 -10 -9 ------------- Run | Scr Mat Mat Turns Passed 1692 | 64 1393 235 Spaces Moved 1462 | 46 1126 290 Core 62 | 19 . 43 Treads 429 | 27 402 . Legs . | . . . Wheels . | . . . Hover 971 | . 724 247 Flight . | . . . Fastest Speed 50 | 50 56 56 Average Speed 87 | 114 93 62 Slowest Speed 160 | 160 160 100 Overloaded Moves . | . . . Propulsion Burnouts . | . . . Robots Hopped . | . . . Cave-ins Triggered . | . . . Exploration Rate (%) 41 | 4 96 24 Regions Visited 2 Branch Regions . Pre-discovered Areas . | . . . Known Exits Taken 1 | . 1 . Unknown Exits Taken 1 | 1 . . Scrap Searched . | . . . Spaces Dug . | . . . Terrain Destroyed 153 | . . 153 Melee . | . . . Projectile . | . . . AOE 153 | . . 153 Terrain Rammed . | . . . Walls Destroyed . | . . . Machines Disabled . | . . . Actions | -11 -10 -9 --------- Run | Scr Mat Mat Total 1716 | 55 1343 318 Wait 103 | . 103 . Move 1460 | 45 1125 290 Hop . | . . . Pick Up 24 | 4 14 6 Fast Attach 7 | 4 3 . Attach 8 | 2 2 4 Detach . | . . . Swap 11 | . 9 2 Drop 16 | . 15 1 Fire 86 | . 71 15 Melee . | . . . Ram 1 | . 1 . Kick . | . . . Crush . | . . . Escape Stasis . | . . . Rewire . | . . . Trap . | . . . Miscellaneous . | . . . Route ------- -11/Scrapyard -10/Materials (discovered 5 exits: *Mat x3 / *Min x2) -9/Materials History --------- Turn | Location | Event 11 | -11/Scrapyard | Discovered new exit (range 15) 65 | -11/Scrapyard | Entered Materials 313 | -10/Materials | Build established: Mutant 773 | -10/Materials | Discovered new exit (range 16) 900 | -10/Materials | Discovered new exit (range 11) 946 | -10/Materials | Discovered new exit (range 7) 1116 | -10/Materials | Repaired Hover Unit 1166 | -10/Materials | Discovered new exit (range 6) 1168 | -10/Materials | Identified exit to Materials 1353 | -10/Materials | Identified exit to Mines 1431 | -10/Materials | Discovered exit to Materials (range 16) 1458 | -10/Materials | Entered another Materials area 1458 | -9/Materials | Evolved 2 slots: Power x1, Utility x1 1693 | -9/Materials | Self-destructed Last Messages --------------- U-05 Engineer lays Concrete. W-16 Scout destroyed. U-05 Engineer lays Concrete. K-01 Serf collects debris. U-05 Engineer builds a Wall. U-05 Engineer lays Concrete. R-06 Scavenger collects Aluminum Leg. K-01 Serf collects debris. Hadron Collector disabled. G-34 Mercenary destroyed. Hover Unit destroyed. Destroyed Hover Unit. K-01 Serf collects debris. U-05 Engineer lays Concrete. The unstable cave ceiling collapses. B-36 Bruiser destroyed. Shield Generator destroyed. Destroyed Shield Generator. K-01 Serf collects debris. U-05 Engineer lays Concrete. Map ----- +----------------------------------------------------+ | # ### !! #??????????????????????????? | | # ! ##?????????????????????????? | | """ #?????????????????????????? | | ] """ #??????????????????????????? | | # """ ##??????????????????????????? | | ! #??????????????????????????? | | ######+#######???????????????????????????? | | #= ##???# ????????????????????????????? | | ######## #???????????????????????????????? | | ^ #???????????????????????????????? | | # ^^ ^ #???????????????????????????????? | | #### ^""" ##########? ???????????????????? | | #??# ^""" # #? ????????????????????? | | #?## """ #? "???????????????????? | | ####### # # " "???? ????????????? | | # # #? ????????????? | | + ! # """" # ???????????? | | # ! # "[ w ???????????? | | # ###### # # # % ??????????? | | # ## ### # # ! ???????????? | | # ### ## # # [ #????????????? | | # # # # #### [[ #????????????? | | # # ### #????????????? | | # # # ## #??????????????? | | # # ## # k #####????????????? | | # ###+##### u ! @ + ?????????? | | ?##### # ## # #???????????? | | ?????# # ## #### #???????????? | | ?????# # ## ? #???????????? | | ?????# + ## """ # # w #???????????? | | ?????# # ## """ r #???????????? | | ?????# # ## """ #???????????? | | ?????######## ## """ * #???????????? | | ???????????# # """ # k% ########???????????? | | ???????????# # # #??????????????????? | | ???????????# # ? #??????????????????? | | ???????????# # ? ##??????????????????? | | ???????????# # ? ?# ###???????????????????? | | ???????????###########?? #?????????????????????? | | ???????????????????????? #?????????????????????? | | ???????????????????????? ?????????????????????? | | ???????????????????????? ??????????????????????? | | ?????????????????????????????????????????????????? | | ?????????????????????????????????????????????????? | | ?????????????????????????????????????????????????? | | ?????????????????????????????????????????????????? | | ?????????????????????????????????????????????????? | | ?????????????????????????????????????????????????? | | ?????????????????????????????????????????????????? | | ?????????????????????????????????????????????????? | +----------------------------------------------------+ Best States ------------- Heat Dissipation 28 Energy Generation 10 Energy Capacity 250 Matter Stores 300 Matter Capacity 300 Sight Range 16 Terrain Scan Density 10 Evasion (%) 53 Targeting Accuracy 5 Recoil Reduction 2 Item Schematics ----------------- Mni. Grenade Launcher | -9/Materials | Scanalyzed Robot Schematics ------------------ None Fabricated ------------ Nothing Alien Tech Used ----------------- None Achievements -------------- None Challenges ------------ None Game ------ Seed NeutrinoParticleTorch Manual? 0 Play Time 00:25:01 Cumulative 15.6 hours Start 2021.11.28 @ 16:05:40 End 2021.11.28 @ 16:29:17 Sessions 1 Manual Loads 0 Difficulty Rogue Special Mode None Game No. 23 Rogue 22 Adventurer 1 Explorer 0 Win Type - Total 0 Types 0/0/0/0/0/0/0/0/0 Lore% 19 Gallery% 16 Achievement% 21 Wizard Run 0 Options --------- ASCII 0 Keyboard 0 Movement Mouse Keybinds 0 Fullscreen 1 Font 18/SmallcapsGlow Map View 76x50 Tactical HUD 0 Map Filters NONE Filters NONE Steam 1 RUN: c9945b33-4ea1-4505-8f07-06730bfd15cf